[Event "*** Titled Tuesday Blitz"]
[Site "Chess.com"]
[Date "2020.02.04"]
[Round "8"]
[White "vladimirdamjanovic"]
[Black "bhavesh1810"]
[Result "1-0"]
[WhiteElo "2616"]
[BlackElo "2148"]
[TimeControl "180+2"]
[EndTime "10:55:36 PST"]
[Termination "vladimirdamjanovic won by resignation"]

1. d4 {[%clk 0:03:01.9]} 1... Nf6 {[%clk 0:03:00.6]} 2. c4 {[%clk 0:03:01.2]}
2... e6 {[%clk 0:03:02.2]} 3. Nf3 {[%clk 0:03:02.3]} 3... d5 {[%clk 0:03:03.5]}
4. Nc3 {[%clk 0:03:03.2]} 4... Be7 {[%clk 0:03:04.2]} 5. cxd5 {[%clk 0:03:02.4]}
5... exd5 {[%clk 0:03:06.1]} 6. Bg5 {[%clk 0:03:03.2]} 6... O-O {[%clk
0:03:07.7]} 7. Qc2 {[%clk 0:03:03.8]} 7... c6 {[%clk 0:03:09]} 8. e3 {[%clk
0:03:05.1]} 8... Re8 {[%clk 0:03:10]} 9. Bd3 {[%clk 0:03:06]} 9... Nbd7 {[%clk
0:03:11.9]} 10. O-O {[%clk 0:03:06.2]} 10... Nf8 {[%clk 0:03:12.7]} 11. h3
{[%clk 0:03:00.8]} 11... g6 {[%clk 0:03:13.3]} 12. Rab1 {[%clk 0:02:59.6]} 12...
Ne6 {[%clk 0:03:14.6]} 13. Bxf6 {[%clk 0:02:59.3]} 13... Bxf6 {[%clk 0:03:16.5]}
14. b4 {[%clk 0:03:00.5]} 14... a6 {[%clk 0:03:18.1]} 15. a4 {[%clk 0:03:01]}
15... b5 {[%clk 0:03:19.8]} 16. Nd2 {[%clk 0:02:50.6]} 16... Ng7 {[%clk
0:03:17.1]} 17. Nb3 {[%clk 0:02:47.9]} 17... Nf5 {[%clk 0:03:15.9]} 18. Ne2
{[%clk 0:02:37.4]} 18... Bd7 {[%clk 0:03:05.3]} 19. Nc5 {[%clk 0:02:36]} 19...
Nd6 {[%clk 0:03:05.8]} 20. Nc1 {[%clk 0:02:18.5]} 20... Nc4 {[%clk 0:03:06.3]}
21. Bxc4 {[%clk 0:02:15.5]} 21... bxc4 {[%clk 0:03:04.5]} 22. Qc3 {[%clk
0:02:07]} 22... Bf5 {[%clk 0:03:00.1]} 23. Rb2 {[%clk 0:02:08]} 23... h5 {[%clk
0:03:00.5]} 24. Ne2 {[%clk 0:02:04.3]} 24... Qc8 {[%clk 0:03:01.9]} 25. Kh2
{[%clk 0:02:01.4]} 25... Kg7 {[%clk 0:03:02]} 26. Ng3 {[%clk 0:01:56.6]} 26...
Bd7 {[%clk 0:03:02]} 27. e4 {[%clk 0:01:54.2]} 27... h4 {[%clk 0:02:57.2]} 28.
Ne2 {[%clk 0:01:38.5]} 28... dxe4 {[%clk 0:02:55.6]} 29. Qxc4 {[%clk 0:01:38.8]}
29... Bf5 {[%clk 0:02:55.1]} 30. Nc3 {[%clk 0:01:37.8]} 30... Rd8 {[%clk
0:02:54.9]} 31. Rd1 {[%clk 0:01:34.2]} 31... Qc7+ {[%clk 0:02:19.2]} 32. Kg1
{[%clk 0:01:27.1]} 32... Qe7 {[%clk 0:02:18.3]} 33. Re2 {[%clk 0:01:24.6]} 33...
a5 {[%clk 0:02:10.7]} 34. N3xe4 {[%clk 0:01:21.6]} 34... axb4 {[%clk 0:02:05.9]}
35. Ng3 {[%clk 0:01:16]} 35... hxg3 {[%clk 0:01:50.2]} 36. Rxe7 {[%clk
0:01:15.2]} 36... gxf2+ {[%clk 0:01:51.8]} 37. Kxf2 {[%clk 0:01:15.7]} 37...
Bxe7 {[%clk 0:01:53.7]} 38. Qxb4 {[%clk 0:01:13.7]} 38... Bh4+ {[%clk
0:01:54.2]} 39. Kg1 {[%clk 0:01:13.4]} 39... Rab8 {[%clk 0:01:53.5]} 40. Qc3
{[%clk 0:01:13.9]} 40... Bf6 {[%clk 0:01:54.4]} 41. a5 {[%clk 0:01:10.7]} 41...
Rd5 {[%clk 0:01:52.2]} 42. a6 {[%clk 0:01:04]} 42... Re8 {[%clk 0:01:53]} 43. a7
{[%clk 0:01:03.4]} 43... Ra8 {[%clk 0:01:53.2]} 44. Qa5 {[%clk 0:00:53]} 44...
Bxd4+ {[%clk 0:01:49.8]} 45. Rxd4 {[%clk 0:00:53.2]} 45... Rxd4 {[%clk
0:01:49.6]} 46. Qa1 {[%clk 0:00:53.9]} 46... Rd8 {[%clk 0:01:51.2]} 47. Nb3
{[%clk 0:00:43.9]} 47... c5 {[%clk 0:01:49.4]} 48. Nxd4 {[%clk 0:00:44.2]} 48...
cxd4 {[%clk 0:01:51.3]} 49. a8=Q {[%clk 0:00:45.1]} 49... Rxa8 {[%clk
0:01:51.2]} 50. Qxa8 {[%clk 0:00:47]} 1-0

[Event "*** Titled Tuesday Blitz"]
[Site "Chess.com"]
[Date "2020.02.04"]
[Round "8"]
[White "arminmusovic"]
[Black "mortngabriel"]
[Result "0-1"]
[WhiteElo "2538"]
[BlackElo "2432"]
[TimeControl "180+2"]
[EndTime "10:55:51 PST"]
[Termination "mortngabriel won by resignation"]

1. a3 {[%clk 0:03:01.9]} 1... g6 {[%clk 0:02:49.7]} 2. Nc3 {[%clk 0:03:03.8]}
2... Bg7 {[%clk 0:02:51.2]} 3. d4 {[%clk 0:03:05.3]} 3... d5 {[%clk 0:02:51.1]}
4. Bg5 {[%clk 0:03:06.1]} 4... h6 {[%clk 0:02:37.7]} 5. Bh4 {[%clk 0:03:06.9]}
5... c5 {[%clk 0:02:37.4]} 6. e3 {[%clk 0:03:07.7]} 6... Nc6 {[%clk 0:02:37.2]}
7. Bb5 {[%clk 0:03:02]} 7... cxd4 {[%clk 0:02:17.3]} 8. exd4 {[%clk 0:03:00.3]}
8... Nf6 {[%clk 0:02:17.2]} 9. Nge2 {[%clk 0:02:58.6]} 9... O-O {[%clk
0:02:16.1]} 10. O-O {[%clk 0:02:59.8]} 10... Bf5 {[%clk 0:02:08.9]} 11. f3
{[%clk 0:02:54.6]} 11... Qb6 {[%clk 0:02:00.1]} 12. Bf2 {[%clk 0:02:48.2]} 12...
a6 {[%clk 0:01:47.4]} 13. Bd3 {[%clk 0:02:45.7]} 13... Bxd3 {[%clk 0:01:14.7]}
14. Qxd3 {[%clk 0:02:47.6]} 14... e6 {[%clk 0:01:14.1]} 15. Na4 {[%clk
0:02:44.1]} 15... Qc7 {[%clk 0:01:14.3]} 16. Rac1 {[%clk 0:02:42.3]} 16... Rfd8
{[%clk 0:01:05.8]} 17. Bg3 {[%clk 0:02:40.2]} 17... Qa5 {[%clk 0:01:01]} 18. Nc5
{[%clk 0:02:36.7]} 18... Qb6 {[%clk 0:00:46.5]} 19. b4 {[%clk 0:02:38]} 19... a5
{[%clk 0:00:36.2]} 20. Na4 {[%clk 0:02:19.8]} 20... Qa7 {[%clk 0:00:32.1]} 21.
b5 {[%clk 0:02:20.5]} 21... Ne7 {[%clk 0:00:28.7]} 22. Bc7 {[%clk 0:02:10.9]}
22... Rdc8 {[%clk 0:00:29]} 23. b6 {[%clk 0:02:10.5]} 23... Qa6 {[%clk 0:00:28]}
24. Nc5 {[%clk 0:01:51]} 24... Qxd3 {[%clk 0:00:27.3]} 25. cxd3 {[%clk
0:01:52.9]} 25... Ne8 {[%clk 0:00:20.8]} 26. Nxb7 {[%clk 0:01:54]} 26... Nxc7
{[%clk 0:00:19.1]} 27. Rxc7 {[%clk 0:01:48.8]} 27... Rxc7 {[%clk 0:00:19.8]} 28.
bxc7 {[%clk 0:01:50.7]} 28... Rc8 {[%clk 0:00:20.9]} 29. Rc1 {[%clk 0:01:51.8]}
29... Nf5 {[%clk 0:00:18.6]} 30. Kf1 {[%clk 0:01:43.1]} 30... Bf8 {[%clk
0:00:16.7]} 31. a4 {[%clk 0:01:36.2]} 31... Bd6 {[%clk 0:00:10.5]} 32. Nxa5
{[%clk 0:01:28.6]} 32... Rxc7 {[%clk 0:00:09.1]} 33. Rxc7 {[%clk 0:01:29.7]}
33... Bxc7 {[%clk 0:00:11]} 34. Nc6 {[%clk 0:01:26.3]} 34... Kf8 {[%clk
0:00:11.3]} 35. a5 {[%clk 0:01:27.3]} 35... Ne7 {[%clk 0:00:12.5]} 36. a6 {[%clk
0:01:28.9]} 36... Nxc6 {[%clk 0:00:13]} 37. g3 {[%clk 0:01:28.1]} 37... Bb6
{[%clk 0:00:13.9]} 0-1

[Event "*** Titled Tuesday Blitz"]
[Site "Chess.com"]
[Date "2020.02.04"]
[Round "8"]
[White "WelshTiger"]
[Black "Andro2"]
[Result "1-0"]
[WhiteElo "2317"]
[BlackElo "2423"]
[TimeControl "180+2"]
[EndTime "10:55:52 PST"]
[Termination "WelshTiger won on time"]

1. e4 {[%clk 0:03:01.9]} 1... c5 {[%clk 0:03:00.3]} 2. Nf3 {[%clk 0:03:02.6]}
2... d6 {[%clk 0:03:01.4]} 3. d4 {[%clk 0:03:03.3]} 3... cxd4 {[%clk 0:03:02.5]}
4. Nxd4 {[%clk 0:03:05.2]} 4... Nf6 {[%clk 0:03:03.4]} 5. Nc3 {[%clk 0:03:06.7]}
5... a6 {[%clk 0:03:04.2]} 6. Be2 {[%clk 0:03:07.1]} 6... e5 {[%clk 0:03:04]} 7.
Nf3 {[%clk 0:03:08.7]} 7... Be7 {[%clk 0:03:01.9]} 8. Bg5 {[%clk 0:03:09]} 8...
Be6 {[%clk 0:02:58.9]} 9. Bxf6 {[%clk 0:03:09.8]} 9... Bxf6 {[%clk 0:02:59.5]}
10. Nd5 {[%clk 0:03:06.1]} 10... Be7 {[%clk 0:02:51.1]} 11. Bc4 {[%clk
0:03:03.6]} 11... Nd7 {[%clk 0:02:37.8]} 12. Qe2 {[%clk 0:02:32.5]} 12... Rc8
{[%clk 0:02:27.7]} 13. O-O {[%clk 0:02:19.9]} 13... O-O {[%clk 0:02:09.1]} 14.
Rfd1 {[%clk 0:02:18.1]} 14... Kh8 {[%clk 0:02:02.7]} 15. Bb3 {[%clk 0:01:57.8]}
15... Nc5 {[%clk 0:01:56.5]} 16. Rd2 {[%clk 0:01:55]} 16... f5 {[%clk
0:01:32.9]} 17. exf5 {[%clk 0:01:40.8]} 17... Bxf5 {[%clk 0:01:17.5]} 18. Nxe7
{[%clk 0:01:41.5]} 18... Qxe7 {[%clk 0:01:17.4]} 19. Rad1 {[%clk 0:01:24.3]}
19... Rcd8 {[%clk 0:01:11.8]} 20. Nd4 {[%clk 0:01:21.5]} 20... Bc8 {[%clk
0:01:00.8]} 21. Bd5 {[%clk 0:01:15.4]} 21... Qg5 {[%clk 0:00:51]} 22. Nb3 {[%clk
0:01:14]} 22... Bg4 {[%clk 0:00:39.3]} 23. f3 {[%clk 0:01:15.2]} 23... Nxb3
{[%clk 0:00:38.4]} 24. axb3 {[%clk 0:01:14]} 24... Bc8 {[%clk 0:00:38.6]} 25.
Be4 {[%clk 0:01:00.6]} 25... Qf6 {[%clk 0:00:39.3]} 26. Qc4 {[%clk 0:00:52.5]}
26... Qh6 {[%clk 0:00:35.7]} 27. Qc3 {[%clk 0:00:45.3]} 27... Qg5 {[%clk
0:00:31.6]} 28. Rxd6 {[%clk 0:00:34.5]} 1-0

[Event "*** Titled Tuesday Blitz"]
[Site "Chess.com"]
[Date "2020.02.04"]
[Round "8"]
[White "Funkmaus"]
[Black "WPWPWP-2015"]
[Result "0-1"]
[WhiteElo "2171"]
[BlackElo "2510"]
[TimeControl "180+2"]
[EndTime "10:55:54 PST"]
[Termination "WPWPWP-2015 won by resignation"]

1. d4 {[%clk 0:03:00]} 1... d5 {[%clk 0:02:58.6]} 2. Nf3 {[%clk 0:03:00.2]} 2...
Nf6 {[%clk 0:02:59]} 3. Bf4 {[%clk 0:03:01.7]} 3... c6 {[%clk 0:02:59.5]} 4. e3
{[%clk 0:03:02.6]} 4... Bg4 {[%clk 0:02:59.5]} 5. Be2 {[%clk 0:03:03.4]} 5...
Nbd7 {[%clk 0:02:59.9]} 6. h3 {[%clk 0:03:03.3]} 6... Bxf3 {[%clk 0:02:59.8]} 7.
Bxf3 {[%clk 0:03:05.2]} 7... e6 {[%clk 0:03:01]} 8. O-O {[%clk 0:03:05.3]} 8...
Be7 {[%clk 0:03:02.2]} 9. Nd2 {[%clk 0:03:01]} 9... O-O {[%clk 0:03:02.1]} 10.
c4 {[%clk 0:03:02]} 10... Rc8 {[%clk 0:03:02.3]} 11. a3 {[%clk 0:02:57.4]} 11...
Re8 {[%clk 0:03:01.9]} 12. b4 {[%clk 0:02:57.6]} 12... Bf8 {[%clk 0:02:56.3]}
13. Qb3 {[%clk 0:02:49.9]} 13... Nb6 {[%clk 0:02:50.1]} 14. c5 {[%clk
0:02:39.8]} 14... Nbd7 {[%clk 0:02:48.7]} 15. a4 {[%clk 0:02:40.9]} 15... e5
{[%clk 0:02:38.8]} 16. dxe5 {[%clk 0:02:30.7]} 16... Nxe5 {[%clk 0:02:36.7]} 17.
Rfd1 {[%clk 0:02:11]} 17... Nxf3+ {[%clk 0:02:22.1]} 18. Nxf3 {[%clk 0:02:12.9]}
18... Ne4 {[%clk 0:02:21.8]} 19. Rd4 {[%clk 0:02:02.3]} 19... a5 {[%clk
0:02:20.1]} 20. bxa5 {[%clk 0:01:43.4]} 20... Nxc5 {[%clk 0:02:12.7]} 21. Qb6
{[%clk 0:01:40.5]} 21... Qxb6 {[%clk 0:02:09.6]} 22. axb6 {[%clk 0:01:42.4]}
22... Nb3 {[%clk 0:02:10.2]} 23. Ra2 {[%clk 0:01:19.7]} 23... Nxd4 {[%clk
0:02:08.7]} 24. Nxd4 {[%clk 0:01:21.6]} 24... Bc5 {[%clk 0:02:09]} 25. Nf5
{[%clk 0:01:16.2]} 25... Ra8 {[%clk 0:02:02.1]} 26. Bc7 {[%clk 0:01:03.1]} 26...
Ra5 {[%clk 0:01:59.4]} 27. Rc2 {[%clk 0:00:34.6]} 27... g6 {[%clk 0:01:46.6]}
28. Nh6+ {[%clk 0:00:30.8]} 28... Kg7 {[%clk 0:01:45.2]} 29. Ng4 {[%clk
0:00:32.7]} 29... f6 {[%clk 0:01:31.8]} 30. Nh2 {[%clk 0:00:28.2]} 30... Bf8
{[%clk 0:01:29.6]} 31. Nf3 {[%clk 0:00:15.2]} 31... Rxa4 {[%clk 0:01:29.5]} 32.
Nd4 {[%clk 0:00:16.4]} 32... Kf7 {[%clk 0:01:26]} 33. Nxc6 {[%clk 0:00:13.5]}
33... bxc6 {[%clk 0:01:25.8]} 34. b7 {[%clk 0:00:14.5]} 34... Rb4 {[%clk
0:01:23.8]} 35. b8=Q {[%clk 0:00:13.8]} 35... Rexb8 {[%clk 0:01:20.9]} 36. Bxb8
{[%clk 0:00:14.6]} 36... Rxb8 {[%clk 0:01:21]} 37. Rxc6 {[%clk 0:00:16.3]} 37...
Rb7 {[%clk 0:01:20.5]} 0-1

[Event "*** Titled Tuesday Blitz"]
[Site "Chess.com"]
[Date "2020.02.04"]
[Round "8"]
[White "Elshan1985"]
[Black "vinniethepooh"]
[Result "0-1"]
[WhiteElo "2689"]
[BlackElo "2799"]
[TimeControl "180+2"]
[EndTime "10:55:55 PST"]
[Termination "vinniethepooh won by resignation"]

1. c4 {[%clk 0:03:01.9]} 1... Nf6 {[%clk 0:03:00.6]} 2. Nc3 {[%clk 0:03:02.9]}
2... e6 {[%clk 0:03:01.7]} 3. d4 {[%clk 0:03:02.9]} 3... Bb4 {[%clk 0:03:01.2]}
4. e3 {[%clk 0:03:01.9]} 4... O-O {[%clk 0:03:00.6]} 5. Ne2 {[%clk 0:03:01.8]}
5... b6 {[%clk 0:02:57.8]} 6. a3 {[%clk 0:03:00.9]} 6... Bxc3+ {[%clk
0:02:58.5]} 7. Nxc3 {[%clk 0:03:01.6]} 7... Bb7 {[%clk 0:03:00.4]} 8. d5 {[%clk
0:02:55.7]} 8... exd5 {[%clk 0:02:51.5]} 9. cxd5 {[%clk 0:02:56.3]} 9... c6
{[%clk 0:02:47.7]} 10. dxc6 {[%clk 0:02:51.8]} 10... dxc6 {[%clk 0:02:39.1]} 11.
Qxd8 {[%clk 0:02:50.5]} 11... Rxd8 {[%clk 0:02:41]} 12. b4 {[%clk 0:02:41.4]}
12... Ba6 {[%clk 0:02:23.5]} 13. Bb2 {[%clk 0:02:35.8]} 13... Bxf1 {[%clk
0:02:23]} 14. Rxf1 {[%clk 0:02:37.7]} 14... Na6 {[%clk 0:01:55.3]} 15. Ke2
{[%clk 0:02:34.4]} 15... Nc7 {[%clk 0:01:39.8]} 16. Rac1 {[%clk 0:02:32.3]}
16... Ne6 {[%clk 0:00:57.5]} 17. Rfd1 {[%clk 0:02:29.2]} 17... Rxd1 {[%clk
0:00:45.4]} 18. Nxd1 {[%clk 0:02:30.1]} 18... c5 {[%clk 0:00:46.7]} 19. f4
{[%clk 0:02:28.4]} 19... Ne4 {[%clk 0:00:43.1]} 20. Kf3 {[%clk 0:02:22.8]} 20...
f5 {[%clk 0:00:41.7]} 21. g4 {[%clk 0:02:23.7]} 21... g6 {[%clk 0:00:33.7]} 22.
gxf5 {[%clk 0:02:24]} 22... gxf5 {[%clk 0:00:35.6]} 23. Nf2 {[%clk 0:02:25.1]}
23... Nxf2 {[%clk 0:00:36.1]} 24. Kxf2 {[%clk 0:02:26.1]} 24... Rd8 {[%clk
0:00:36.4]} 25. Ke2 {[%clk 0:02:27.2]} 25... Kf7 {[%clk 0:00:36.5]} 26. bxc5
{[%clk 0:02:27.9]} 26... Nxc5 {[%clk 0:00:37.8]} 27. Bd4 {[%clk 0:02:25.1]}
27... Ne6 {[%clk 0:00:33.1]} 28. Be5 {[%clk 0:02:22.9]} 28... Rd5 {[%clk
0:00:33.4]} 29. Rc8 {[%clk 0:02:12.3]} 29... Rd8 {[%clk 0:00:33.3]} 30. Rc4
{[%clk 0:02:02.7]} 30... Rd5 {[%clk 0:00:32.1]} 31. Rc8 {[%clk 0:01:58]} 31...
Rd8 {[%clk 0:00:30]} 32. Rc3 {[%clk 0:01:48.3]} 32... Rd5 {[%clk 0:00:30.3]} 33.
h4 {[%clk 0:01:48.3]} 33... Rc5 {[%clk 0:00:23.8]} 34. Rd3 {[%clk 0:01:49.5]}
34... Ke8 {[%clk 0:00:18.6]} 35. h5 {[%clk 0:01:43.8]} 35... Rc2+ {[%clk
0:00:18.8]} 36. Kf3 {[%clk 0:01:42.5]} 36... Nc5 {[%clk 0:00:17.7]} 37. Rc3
{[%clk 0:01:36.7]} 37... Ra2 {[%clk 0:00:16.7]} 38. Rc4 {[%clk 0:01:09.4]} 38...
Ne4 {[%clk 0:00:17.1]} 39. Rxe4 {[%clk 0:01:08.3]} 39... fxe4+ {[%clk 0:00:19]}
0-1

[Event "*** Titled Tuesday Blitz"]
[Site "Chess.com"]
[Date "2020.02.04"]
[Round "8"]
[White "zurzan"]
[Black "FearNoEvil12"]
[Result "0-1"]
[WhiteElo "1980"]
[BlackElo "2003"]
[TimeControl "180+2"]
[EndTime "10:55:57 PST"]
[Termination "FearNoEvil12 won by resignation"]

1. f4 {[%clk 0:03:01.9]} 1... b5 {[%clk 0:02:59.2]} 2. Nf3 {[%clk 0:03:02.4]}
2... Bb7 {[%clk 0:03:00.5]} 3. g3 {[%clk 0:03:03.7]} 3... a6 {[%clk 0:03:01.8]}
4. Bg2 {[%clk 0:03:04.9]} 4... e6 {[%clk 0:03:02.6]} 5. O-O {[%clk 0:03:06.3]}
5... Nf6 {[%clk 0:03:02.5]} 6. d3 {[%clk 0:03:07.6]} 6... d6 {[%clk 0:03:03.8]}
7. e4 {[%clk 0:03:08.5]} 7... Nbd7 {[%clk 0:03:05]} 8. Qe1 {[%clk 0:03:08.9]}
8... Be7 {[%clk 0:03:00.9]} 9. Be3 {[%clk 0:03:09.6]} 9... h5 {[%clk 0:03:00.7]}
10. h3 {[%clk 0:03:10.1]} 10... h4 {[%clk 0:02:59.7]} 11. g4 {[%clk 0:03:10.8]}
11... Nxg4 {[%clk 0:02:57.1]} 12. hxg4 {[%clk 0:03:11.3]} 12... h3 {[%clk
0:02:58.5]} 13. Bh1 {[%clk 0:03:11.9]} 13... Nf6 {[%clk 0:02:56.8]} 14. g5
{[%clk 0:03:09.6]} 14... Ng4 {[%clk 0:02:55]} 15. Nh2 {[%clk 0:02:36.5]} 15...
Nxe3 {[%clk 0:02:46.3]} 16. Qxe3 {[%clk 0:02:36.4]} 16... d5 {[%clk 0:02:47.3]}
17. e5 {[%clk 0:02:23.9]} 17... c5 {[%clk 0:02:38.4]} 18. c3 {[%clk 0:02:23.1]}
18... Qc7 {[%clk 0:02:30.3]} 19. d4 {[%clk 0:02:15.4]} 19... O-O-O {[%clk
0:02:27.3]} 20. Nd2 {[%clk 0:02:12.5]} 20... Rh4 {[%clk 0:02:25.8]} 21. Rf3
{[%clk 0:02:01.3]} 21... f6 {[%clk 0:02:24.4]} 22. Rxh3 {[%clk 0:01:54.4]} 22...
Rxh3 {[%clk 0:02:22.4]} 23. Qxh3 {[%clk 0:01:54.7]} 23... cxd4 {[%clk
0:02:20.1]} 24. Qxe6+ {[%clk 0:01:54]} 24... Kb8 {[%clk 0:02:19.2]} 25. cxd4
{[%clk 0:01:34.4]} 25... fxg5 {[%clk 0:02:19.5]} 26. f5 {[%clk 0:01:28.9]} 26...
Rh8 {[%clk 0:01:46.4]} 27. Ndf3 {[%clk 0:01:04.8]} 27... g4 {[%clk 0:01:35.1]}
28. Nxg4 {[%clk 0:00:59.9]} 28... Bh4 {[%clk 0:01:27.6]} 29. f6 {[%clk 0:00:51]}
29... gxf6 {[%clk 0:01:18.9]} 30. Nxf6 {[%clk 0:00:51.8]} 30... Qc2 {[%clk
0:01:10]} 31. Nd7+ {[%clk 0:00:48.8]} 31... Ka8 {[%clk 0:01:10]} 32. Rf1 {[%clk
0:00:43.2]} 32... Bg3 {[%clk 0:01:01.8]} 33. Nb6+ {[%clk 0:00:41.7]} 33... Ka7
{[%clk 0:01:01.3]} 34. Bg2 {[%clk 0:00:37.1]} 34... Qe2 {[%clk 0:00:46.6]} 35.
Nxd5 {[%clk 0:00:35.9]} 35... Bxd5 {[%clk 0:00:42.2]} 36. Qxd5 {[%clk
0:00:36.4]} 36... Qe3+ {[%clk 0:00:43.7]} 0-1

[Event "*** Titled Tuesday Blitz"]
[Site "Chess.com"]
[Date "2020.02.04"]
[Round "8"]
[White "GM-2023"]
[Black "VALPARAISO37"]
[Result "0-1"]
[WhiteElo "2095"]
[BlackElo "2234"]
[TimeControl "180+2"]
[EndTime "10:56:01 PST"]
[Termination "VALPARAISO37 won on time"]

1. e4 {[%clk 0:02:53.8]} 1... e5 {[%clk 0:02:46.4]} 2. Nf3 {[%clk 0:02:53.5]}
2... Nc6 {[%clk 0:02:47]} 3. d4 {[%clk 0:02:54.4]} 3... exd4 {[%clk 0:02:46.8]}
4. Nxd4 {[%clk 0:02:56.3]} 4... Bc5 {[%clk 0:02:46.9]} 5. Nb3 {[%clk 0:02:57.2]}
5... Bb6 {[%clk 0:02:47.4]} 6. Nc3 {[%clk 0:02:58.4]} 6... Nge7 {[%clk
0:02:48.1]} 7. Qe2 {[%clk 0:02:59.3]} 7... O-O {[%clk 0:02:47.9]} 8. Be3 {[%clk
0:03:00.6]} 8... d6 {[%clk 0:02:48.7]} 9. O-O-O {[%clk 0:03:01.3]} 9... f5
{[%clk 0:02:49.8]} 10. Bg5 {[%clk 0:02:46.6]} 10... f4 {[%clk 0:02:45.6]} 11. g3
{[%clk 0:02:20.1]} 11... f3 {[%clk 0:02:41.6]} 12. Qd2 {[%clk 0:02:19.3]} 12...
Qe8 {[%clk 0:02:34.5]} 13. Bc4+ {[%clk 0:02:17.5]} 13... Kh8 {[%clk 0:02:34]}
14. h4 {[%clk 0:01:13.9]} 14... Ne5 {[%clk 0:02:30.3]} 15. Bd3 {[%clk
0:01:11.4]} 15... Ng4 {[%clk 0:02:25.8]} 16. Rdf1 {[%clk 0:01:05.8]} 16... Be6
{[%clk 0:02:21.8]} 17. h5 {[%clk 0:01:03.2]} 17... h6 {[%clk 0:02:22.2]} 18. Bf4
{[%clk 0:01:02.5]} 18... a6 {[%clk 0:02:12]} 19. Rh4 {[%clk 0:01:02.8]} 19...
Qf7 {[%clk 0:02:09.1]} 20. Nd5 {[%clk 0:00:52.4]} 20... Nxd5 {[%clk 0:01:44.1]}
21. exd5 {[%clk 0:00:50.5]} 21... Bf5 {[%clk 0:01:44.3]} 22. Rxg4 {[%clk
0:00:15.6]} 22... Bxg4 {[%clk 0:01:39]} 23. Bxh6 {[%clk 0:00:16.4]} 23... Qxd5
{[%clk 0:01:39.2]} 24. Bf4 {[%clk 0:00:02.5]} 24... Rae8 {[%clk 0:01:31.7]} 25.
h6 {[%clk 0:00:03.3]} 25... Re2 {[%clk 0:01:25.9]} 26. hxg7+ {[%clk 0:00:02.9]}
26... Kxg7 {[%clk 0:01:25.1]} 27. Bh6+ {[%clk 0:00:03.6]} 27... Kf7 {[%clk
0:01:25]} 28. Bg6+ {[%clk 0:00:04.5]} 28... Kxg6 {[%clk 0:01:25]} 29. Qxd5
{[%clk 0:00:06.2]} 29... Kxh6 {[%clk 0:01:24.9]} 30. Rh1+ {[%clk 0:00:05.4]}
30... Kg6 {[%clk 0:01:24.1]} 31. Qd3+ {[%clk 0:00:03.6]} 31... Rf5 {[%clk
0:01:19.2]} 32. Nd4 {[%clk 0:00:02.1]} 32... Rxf2 {[%clk 0:01:11.9]} 0-1

[Event "*** Titled Tuesday Blitz"]
[Site "Chess.com"]
[Date "2020.02.04"]
[Round "8"]
[White "HarryCun"]
[Black "Zarikovs1999"]
[Result "1/2-1/2"]
[WhiteElo "2133"]
[BlackElo "2342"]
[TimeControl "180+2"]
[EndTime "10:56:09 PST"]
[Termination "Game drawn by agreement"]

1. Nf3 {[%clk 0:02:59.2]} 1... Nf6 {[%clk 0:03:00.8]} 2. g3 {[%clk 0:03:01.1]}
2... b6 {[%clk 0:03:02]} 3. Bg2 {[%clk 0:02:58.3]} 3... Bb7 {[%clk 0:03:03.9]}
4. O-O {[%clk 0:02:59]} 4... e6 {[%clk 0:03:05]} 5. d3 {[%clk 0:02:59.5]} 5...
d5 {[%clk 0:03:04.8]} 6. c4 {[%clk 0:03:00.5]} 6... dxc4 {[%clk 0:03:05]} 7.
dxc4 {[%clk 0:03:02.4]} 7... Qxd1 {[%clk 0:03:03.3]} 8. Rxd1 {[%clk 0:03:04.3]}
8... c5 {[%clk 0:03:03.9]} 9. Nc3 {[%clk 0:03:04.3]} 9... Be7 {[%clk 0:03:04]}
10. Nb5 {[%clk 0:03:05.1]} 10... Na6 {[%clk 0:02:55.4]} 11. Bf4 {[%clk
0:03:02.6]} 11... O-O {[%clk 0:02:55.1]} 12. Ne5 {[%clk 0:03:03.3]} 12... Bxg2
{[%clk 0:02:55.1]} 13. Kxg2 {[%clk 0:03:05.2]} 13... Rfd8 {[%clk 0:02:56.4]} 14.
Nc6 {[%clk 0:03:01.9]} 14... Re8 {[%clk 0:02:50.5]} 15. Bg5 {[%clk 0:03:01.7]}
15... h6 {[%clk 0:02:45]} 16. Bf4 {[%clk 0:02:58.5]} 16... g5 {[%clk 0:02:17.1]}
17. Be5 {[%clk 0:02:49]} 17... Ng4 {[%clk 0:01:57.8]} 18. Bc3 {[%clk 0:02:37.7]}
18... Bf6 {[%clk 0:01:20.6]} 19. Bxf6 {[%clk 0:02:13.2]} 19... Nxf6 {[%clk
0:01:20.7]} 20. Ncxa7 {[%clk 0:02:14.3]} 20... Red8 {[%clk 0:01:08.5]} 21. Nc6
{[%clk 0:01:49.8]} 21... Rxd1 {[%clk 0:01:01.3]} 22. Rxd1 {[%clk 0:01:51.5]}
22... Kf8 {[%clk 0:01:01.5]} 23. a3 {[%clk 0:01:34.7]} 23... Rc8 {[%clk
0:01:01.6]} 24. Ne5 {[%clk 0:01:33.4]} 24... Nc7 {[%clk 0:00:59.1]} 25. Nd7+
{[%clk 0:01:33.6]} 25... Nxd7 {[%clk 0:00:57.9]} 26. Rxd7 {[%clk 0:01:32.8]}
26... Nxb5 {[%clk 0:00:57.6]} 27. cxb5 {[%clk 0:01:34.7]} 27... c4 {[%clk
0:00:40.2]} 28. Rb7 {[%clk 0:01:33.2]} 28... c3 {[%clk 0:00:41]} 29. bxc3 {[%clk
0:01:35.1]} 29... Rxc3 {[%clk 0:00:41.2]} 30. Rxb6 {[%clk 0:01:10.9]} 30... Rxa3
{[%clk 0:00:41.6]} 31. Rb7 {[%clk 0:01:10.6]} 31... Kg7 {[%clk 0:00:40.9]} 32.
b6 {[%clk 0:01:11.8]} 32... Rb3 {[%clk 0:00:41.1]} 33. e3 {[%clk 0:01:12.4]}
33... g4 {[%clk 0:00:42.2]} 34. Rb8 {[%clk 0:01:13.2]} 34... h5 {[%clk
0:00:42.6]} 35. b7 {[%clk 0:01:14.6]} 35... Rb1 {[%clk 0:00:41.7]} 36. h3 {[%clk
0:01:13.5]} 36... Kh7 {[%clk 0:00:40.7]} 37. hxg4 {[%clk 0:00:53.2]} 37... hxg4
{[%clk 0:00:35.7]} 38. e4 {[%clk 0:00:36.5]} 1/2-1/2